[Event "*** Titled Tuesday Blitz"]
[Site "Chess.com"]
[Date "2020.05.26"]
[Round "9"]
[White "ehrenfeld"]
[Black "Lubov_Gordyk"]
[Result "0-1"]
[WhiteElo "2459"]
[BlackElo "2623"]
[TimeControl "180+1"]
[EndTime "11:52:58 PDT"]
[Termination "Lubov_Gordyk won on time"]

1. e4 {[%clk 0:03:00.9]} 1... g6 {[%clk 0:02:59.4]} 2. d4 {[%clk 0:03:00.5]}
2... Bg7 {[%clk 0:02:58.9]} 3. Nc3 {[%clk 0:03:01]} 3... d6 {[%clk 0:02:57.9]}
4. Be3 {[%clk 0:03:00.7]} 4... a6 {[%clk 0:02:56.8]} 5. a4 {[%clk 0:02:59.6]}
5... Nf6 {[%clk 0:02:53.7]} 6. h3 {[%clk 0:02:59]} 6... O-O {[%clk 0:02:50.1]}
7. g4 {[%clk 0:02:58.3]} 7... Nc6 {[%clk 0:02:47.3]} 8. Nge2 {[%clk 0:02:53.7]}
8... e5 {[%clk 0:02:43.1]} 9. d5 {[%clk 0:02:51.4]} 9... Ne7 {[%clk 0:02:37.5]}
10. Ng3 {[%clk 0:02:51.1]} 10... h6 {[%clk 0:02:27.2]} 11. Qd2 {[%clk
0:02:48.5]} 11... g5 {[%clk 0:02:20.7]} 12. f3 {[%clk 0:02:40.7]} 12... Ng6
{[%clk 0:02:18.9]} 13. Be2 {[%clk 0:01:57.2]} 13... Bd7 {[%clk 0:02:16.5]} 14.
a5 {[%clk 0:01:52.8]} 14... Nh4 {[%clk 0:02:13.5]} 15. O-O-O {[%clk 0:01:47]}
15... b6 {[%clk 0:02:10.3]} 16. axb6 {[%clk 0:01:46.1]} 16... cxb6 {[%clk
0:02:09]} 17. Kb1 {[%clk 0:01:41.9]} 17... b5 {[%clk 0:01:52.9]} 18. Nf5 {[%clk
0:01:36.2]} 18... Bxf5 {[%clk 0:01:50.5]} 19. gxf5 {[%clk 0:01:33.4]} 19... Nh5
{[%clk 0:01:45.6]} 20. Na2 {[%clk 0:01:25.8]} 20... Nf4 {[%clk 0:01:42.6]} 21.
Nb4 {[%clk 0:01:23.5]} 21... Qd7 {[%clk 0:01:28.5]} 22. Nc6 {[%clk 0:01:22.7]}
22... Rfc8 {[%clk 0:01:27.7]} 23. Rc1 {[%clk 0:01:20.1]} 23... Rxc6 {[%clk
0:01:23.6]} 24. dxc6 {[%clk 0:01:19.4]} 24... Qxc6 {[%clk 0:01:24.1]} 25. Rhe1
{[%clk 0:01:18.8]} 25... Rd8 {[%clk 0:01:22]} 26. c4 {[%clk 0:01:15.1]} 26...
bxc4 {[%clk 0:01:14.2]} 27. Bxc4 {[%clk 0:01:13.9]} 27... Qb7 {[%clk 0:01:12.2]}
28. Rf1 {[%clk 0:01:04]} 28... Nhg2 {[%clk 0:01:08.5]} 29. Bf2 {[%clk
0:01:01.1]} 29... d5 {[%clk 0:01:01]} 30. Rfd1 {[%clk 0:00:54.8]} 30... d4
{[%clk 0:00:57.7]} 31. Qa5 {[%clk 0:00:50.4]} 31... Rd6 {[%clk 0:00:52.5]} 32.
Ba2 {[%clk 0:00:36.9]} 32... Rb6 {[%clk 0:00:51.3]} 33. Rd2 {[%clk 0:00:36.6]}
33... Ne3 {[%clk 0:00:48.9]} 34. Qc5 {[%clk 0:00:34]} 34... Bf8 {[%clk
0:00:41.1]} 35. Qc8 {[%clk 0:00:33.5]} 35... Kg7 {[%clk 0:00:38.1]} 36. Rc7
{[%clk 0:00:31.6]} 36... Qxc8 {[%clk 0:00:37.2]} 37. Rxc8 {[%clk 0:00:30.7]}
37... Bb4 {[%clk 0:00:33.6]} 38. Bxe3 {[%clk 0:00:27.5]} 38... dxe3 {[%clk
0:00:33.2]} 39. Rd7 {[%clk 0:00:28]} 39... Rf6 {[%clk 0:00:33.1]} 40. Rcc7
{[%clk 0:00:27.2]} 40... e2 {[%clk 0:00:26.8]} 41. Rc1 {[%clk 0:00:15.7]} 41...
e1=Q {[%clk 0:00:26.1]} 42. Rxe1 {[%clk 0:00:14.9]} 42... Bxe1 {[%clk
0:00:24.9]} 43. Bc4 {[%clk 0:00:13.8]} 43... a5 {[%clk 0:00:24.2]} 44. Bf1
{[%clk 0:00:09.9]} 44... h5 {[%clk 0:00:24]} 45. Ka2 {[%clk 0:00:08.8]} 45...
Bb4 {[%clk 0:00:24.2]} 46. Kb3 {[%clk 0:00:08.2]} 46... Rd6 {[%clk 0:00:24.3]}
47. Rb7 {[%clk 0:00:07.2]} 47... h4 {[%clk 0:00:18.9]} 48. Ka4 {[%clk
0:00:06.1]} 48... Rf6 {[%clk 0:00:18.6]} 49. b3 {[%clk 0:00:05.7]} 49... Nh5
{[%clk 0:00:18.6]} 50. Kb5 {[%clk 0:00:05.6]} 50... Ng3 {[%clk 0:00:18.9]} 51.
Bc4 {[%clk 0:00:05]} 51... Nh1 {[%clk 0:00:19]} 52. Rd7 {[%clk 0:00:04.2]} 52...
Nf2 {[%clk 0:00:18.9]} 53. Bf1 {[%clk 0:00:03.8]} 53... Rd6 {[%clk 0:00:18]} 54.
Rb7 {[%clk 0:00:03.1]} 54... Nd1 {[%clk 0:00:14.5]} 0-1

[Event "*** Titled Tuesday Blitz"]
[Site "Chess.com"]
[Date "2020.05.26"]
[Round "9"]
[White "profofchess"]
[Black "QueenOfTactics90"]
[Result "1-0"]
[WhiteElo "2490"]
[BlackElo "1982"]
[TimeControl "180+1"]
[EndTime "11:52:58 PDT"]
[Termination "profofchess won by resignation"]

1. e4 {[%clk 0:03:00.9]} 1... c5 {[%clk 0:02:59.2]} 2. Nf3 {[%clk 0:02:59.8]}
2... Nc6 {[%clk 0:02:58.9]} 3. Bb5 {[%clk 0:02:57.5]} 3... g6 {[%clk 0:02:57.9]}
4. O-O {[%clk 0:02:56]} 4... Bg7 {[%clk 0:02:56.6]} 5. Re1 {[%clk 0:02:54.5]}
5... e5 {[%clk 0:02:52.8]} 6. Bxc6 {[%clk 0:02:53.2]} 6... dxc6 {[%clk
0:02:51.8]} 7. d3 {[%clk 0:02:50.4]} 7... Qe7 {[%clk 0:02:48.6]} 8. a4 {[%clk
0:02:48.7]} 8... Be6 {[%clk 0:02:44.5]} 9. a5 {[%clk 0:02:47.2]} 9... Rd8 {[%clk
0:02:41.9]} 10. b3 {[%clk 0:02:37.8]} 10... Nh6 {[%clk 0:02:29]} 11. Nbd2 {[%clk
0:02:20.6]} 11... O-O {[%clk 0:02:23.7]} 12. Nc4 {[%clk 0:02:17.2]} 12... f6
{[%clk 0:02:23.5]} 13. Bd2 {[%clk 0:02:04.1]} 13... Nf7 {[%clk 0:02:20.6]} 14.
Be3 {[%clk 0:01:56.6]} 14... Bxc4 {[%clk 0:02:01.7]} 15. bxc4 {[%clk 0:01:54.9]}
15... b6 {[%clk 0:02:01.8]} 16. Qb1 {[%clk 0:01:48.4]} 16... Qc7 {[%clk
0:01:58.7]} 17. Qb3 {[%clk 0:01:33.1]} 17... f5 {[%clk 0:01:58.6]} 18. axb6
{[%clk 0:01:09.8]} 18... axb6 {[%clk 0:01:57.4]} 19. Bd2 {[%clk 0:01:09.1]}
19... f4 {[%clk 0:01:46]} 20. Ra6 {[%clk 0:01:05]} 20... Rb8 {[%clk 0:01:34.8]}
21. Rea1 {[%clk 0:01:01.1]} 21... Nd6 {[%clk 0:01:26.8]} 22. Bc3 {[%clk
0:00:47.6]} 22... Rfe8 {[%clk 0:01:19]} 23. Qb2 {[%clk 0:00:43.2]} 23... Nc8
{[%clk 0:01:09.8]} 24. h3 {[%clk 0:00:26.4]} 24... b5 {[%clk 0:01:10]} 25. cxb5
{[%clk 0:00:24.5]} 25... cxb5 {[%clk 0:01:10.3]} 26. Ra8 {[%clk 0:00:20.1]}
26... b4 {[%clk 0:01:09.6]} 27. Bd2 {[%clk 0:00:19.6]} 27... Nb6 {[%clk
0:01:07.3]} 28. Qb3+ {[%clk 0:00:19.5]} 28... Kh8 {[%clk 0:01:05.7]} 29. Rxb8
{[%clk 0:00:19.3]} 29... Qxb8 {[%clk 0:01:05.5]} 30. Ng5 {[%clk 0:00:19.2]}
30... h6 {[%clk 0:00:58.7]} 31. Ne6 {[%clk 0:00:18]} 31... Qd6 {[%clk
0:00:50.4]} 32. Nxg7 {[%clk 0:00:17.3]} 32... Kxg7 {[%clk 0:00:50.2]} 33. Ra7+
{[%clk 0:00:16.3]} 33... Re7 {[%clk 0:00:49.8]} 34. Ra6 {[%clk 0:00:15.1]} 34...
Qc7 {[%clk 0:00:41.3]} 35. Qa2 {[%clk 0:00:14.9]} 35... g5 {[%clk 0:00:34.8]}
36. Qa5 {[%clk 0:00:14.4]} 36... Nd7 {[%clk 0:00:28.5]} 37. Qxc7 {[%clk
0:00:14]} 37... Kf7 {[%clk 0:00:24.1]} 38. Qd6 {[%clk 0:00:13.9]} 38... Nf8
{[%clk 0:00:22.4]} 39. Qxc5 {[%clk 0:00:12.4]} 39... Ne6 {[%clk 0:00:22]} 40.
Qxb4 {[%clk 0:00:12.1]} 40... Nd4 {[%clk 0:00:20.9]} 41. Qc4+ {[%clk 0:00:09.8]}
41... Kf8 {[%clk 0:00:20.2]} 42. Ra8+ {[%clk 0:00:08.2]} 42... Kg7 {[%clk
0:00:20.8]} 43. Rg8+ {[%clk 0:00:08]} 43... Kf6 {[%clk 0:00:21.7]} 44. Rf8+
{[%clk 0:00:08.1]} 44... Kg6 {[%clk 0:00:20.6]} 45. Qg8+ {[%clk 0:00:07.7]}
45... Kh5 {[%clk 0:00:20.9]} 46. g4+ {[%clk 0:00:05.5]} 46... fxg3 {[%clk
0:00:20.5]} 47. fxg3 {[%clk 0:00:05.5]} 47... Ne2+ {[%clk 0:00:21.4]} 48. Kg2
{[%clk 0:00:05.4]} 48... Nd4 {[%clk 0:00:20.7]} 49. g4+ {[%clk 0:00:05.2]} 49...
Kh4 {[%clk 0:00:20.7]} 50. Qg6 {[%clk 0:00:04.9]} 50... Re6 {[%clk 0:00:19.7]}
51. Qxe6 {[%clk 0:00:05.1]} 51... Nxe6 {[%clk 0:00:19.2]} 52. Rf6 {[%clk
0:00:05.5]} 52... Nf4+ {[%clk 0:00:16.7]} 53. Bxf4 {[%clk 0:00:05.6]} 53... gxf4
{[%clk 0:00:17.3]} 54. Rxh6+ {[%clk 0:00:05.1]} 54... Kg5 {[%clk 0:00:18.2]} 55.
Rh5+ {[%clk 0:00:05.3]} 55... Kg6 {[%clk 0:00:18.1]} 56. Rf5 {[%clk 0:00:05.3]}
56... Kg7 {[%clk 0:00:16.5]} 57. Kf3 {[%clk 0:00:05.6]} 57... Kg8 {[%clk
0:00:17.4]} 58. c4 {[%clk 0:00:06]} 58... Kg7 {[%clk 0:00:18.3]} 59. c5 {[%clk
0:00:06.6]} 59... Kg6 {[%clk 0:00:19.2]} 60. c6 {[%clk 0:00:07.1]} 60... Kg7
{[%clk 0:00:20.1]} 61. c7 {[%clk 0:00:07.7]} 61... Kg6 {[%clk 0:00:21]} 62. c8=Q
{[%clk 0:00:08.1]} 1-0

[Event "*** Titled Tuesday Blitz"]
[Site "Chess.com"]
[Date "2020.05.26"]
[Round "9"]
[White "nihalsarin"]
[Black "TigrVShlyape"]
[Result "0-1"]
[WhiteElo "3017"]
[BlackElo "2873"]
[TimeControl "180+1"]
[EndTime "11:52:59 PDT"]
[Termination "TigrVShlyape won on time"]

1. e4 {[%clk 0:03:00.9]} 1... e5 {[%clk 0:02:57.1]} 2. Nf3 {[%clk 0:03:00.8]}
2... Nc6 {[%clk 0:02:56.8]} 3. Bb5 {[%clk 0:03:01]} 3... a6 {[%clk 0:02:56.2]}
4. Ba4 {[%clk 0:03:01.5]} 4... Nf6 {[%clk 0:02:56.2]} 5. O-O {[%clk 0:02:57.2]}
5... Be7 {[%clk 0:02:56.3]} 6. d3 {[%clk 0:02:57]} 6... d6 {[%clk 0:02:53.6]} 7.
Nbd2 {[%clk 0:02:54.4]} 7... O-O {[%clk 0:02:52.4]} 8. c3 {[%clk 0:02:54.9]}
8... b5 {[%clk 0:02:51]} 9. Bc2 {[%clk 0:02:54.3]} 9... Nb8 {[%clk 0:02:51.1]}
10. d4 {[%clk 0:02:50]} 10... Nbd7 {[%clk 0:02:50.8]} 11. Re1 {[%clk 0:02:50.6]}
11... Bb7 {[%clk 0:02:50.6]} 12. Nf1 {[%clk 0:02:51]} 12... Re8 {[%clk
0:02:49.4]} 13. Ng3 {[%clk 0:02:51.5]} 13... g6 {[%clk 0:02:46]} 14. a4 {[%clk
0:02:51.7]} 14... Bf8 {[%clk 0:02:45.5]} 15. Bd3 {[%clk 0:02:51.8]} 15... c6
{[%clk 0:02:45.2]} 16. Bg5 {[%clk 0:02:51.8]} 16... Bg7 {[%clk 0:02:43.5]} 17.
h3 {[%clk 0:02:51.9]} 17... Qc7 {[%clk 0:02:36.5]} 18. Qd2 {[%clk 0:02:50.8]}
18... Nf8 {[%clk 0:02:34]} 19. Bh6 {[%clk 0:02:47.8]} 19... Ne6 {[%clk
0:02:32.4]} 20. Bxg7 {[%clk 0:02:44.8]} 20... Kxg7 {[%clk 0:02:31.6]} 21. b4
{[%clk 0:02:40.3]} 21... Nf4 {[%clk 0:02:16.1]} 22. Bf1 {[%clk 0:02:37.6]} 22...
h6 {[%clk 0:02:12.1]} 23. c4 {[%clk 0:02:20.9]} 23... Ne6 {[%clk 0:01:44.4]} 24.
cxb5 {[%clk 0:02:05.1]} 24... cxb5 {[%clk 0:01:42.1]} 25. axb5 {[%clk
0:02:01.8]} 25... axb5 {[%clk 0:01:42.1]} 26. Bxb5 {[%clk 0:02:01.5]} 26... Rxa1
{[%clk 0:01:41.2]} 27. Rxa1 {[%clk 0:02:02.4]} 27... Rb8 {[%clk 0:01:39]} 28. d5
{[%clk 0:01:51.5]} 28... Nf4 {[%clk 0:01:33.5]} 29. Rc1 {[%clk 0:01:12.6]} 29...
Qb6 {[%clk 0:01:30.8]} 30. Bc6 {[%clk 0:01:10.3]} 30... Ba6 {[%clk 0:01:24.9]}
31. b5 {[%clk 0:00:58.6]} 31... Bxb5 {[%clk 0:01:23.4]} 32. Rb1 {[%clk
0:00:58.7]} 32... Qc5 {[%clk 0:01:22.1]} 33. Qb4 {[%clk 0:00:40.1]} 33... Bxc6
{[%clk 0:00:37.2]} 34. Qxb8 {[%clk 0:00:39.1]} 34... Bd7 {[%clk 0:00:37.6]} 35.
Qb6 {[%clk 0:00:22.9]} 35... Qc2 {[%clk 0:00:34.5]} 36. Re1 {[%clk 0:00:17.7]}
36... Nd3 {[%clk 0:00:32.2]} 37. Rf1 {[%clk 0:00:13.5]} 37... Ne8 {[%clk
0:00:30.6]} 38. Ra1 {[%clk 0:00:08.3]} 38... Nc5 {[%clk 0:00:24.5]} 39. Ra7
{[%clk 0:00:05.6]} 39... Qc1+ {[%clk 0:00:19.6]} 40. Kh2 {[%clk 0:00:05.8]}
40... Qf4 {[%clk 0:00:20]} 41. Qd8 {[%clk 0:00:04.8]} 41... Bb5 {[%clk
0:00:18.6]} 42. Ra8 {[%clk 0:00:03]} 42... Nxe4 {[%clk 0:00:17.5]} 43. Qe7
{[%clk 0:00:03.2]} 43... Nxf2 {[%clk 0:00:17.1]} 44. Rxe8 {[%clk 0:00:01.4]}
44... Bxe8 {[%clk 0:00:17]} 45. Qxe8 {[%clk 0:00:02.1]} 45... Ne4 {[%clk
0:00:17.4]} 46. Qe7 {[%clk 0:00:02]} 46... Qxg3+ {[%clk 0:00:17.9]} 47. Kh1
{[%clk 0:00:02.5]} 47... Nf2+ {[%clk 0:00:17.5]} 48. Kg1 {[%clk 0:00:03.2]}
48... Nxh3+ {[%clk 0:00:18.2]} 49. Kh1 {[%clk 0:00:03.9]} 49... Nf2+ {[%clk
0:00:18.4]} 50. Kg1 {[%clk 0:00:04]} 50... Nh3+ {[%clk 0:00:18.9]} 51. Kh1
{[%clk 0:00:04.5]} 51... Nf4 {[%clk 0:00:19.5]} 52. Nh4 {[%clk 0:00:04.5]} 52...
Qe1+ {[%clk 0:00:17.7]} 53. Kh2 {[%clk 0:00:04.9]} 53... Ne2 {[%clk 0:00:18.3]}
54. Nf3 {[%clk 0:00:04]} 54... Qg3+ {[%clk 0:00:18.3]} 55. Kh1 {[%clk
0:00:04.6]} 55... Nf4 {[%clk 0:00:18]} 56. Nh4 {[%clk 0:00:05.1]} 56... e4
{[%clk 0:00:18.3]} 57. Kg1 {[%clk 0:00:03.2]} 57... e3 {[%clk 0:00:18.6]} 0-1

[Event "*** Titled Tuesday Blitz"]
[Site "Chess.com"]
[Date "2020.05.26"]
[Round "9"]
[White "atalz0"]
[Black "joejan"]
[Result "1-0"]
[WhiteElo "2335"]
[BlackElo "2191"]
[TimeControl "180+1"]
[EndTime "11:52:59 PDT"]
[Termination "atalz0 won on time"]

1. d4 {[%clk 0:03:00.9]} 1... Nf6 {[%clk 0:02:58.6]} 2. c4 {[%clk 0:03:00.9]}
2... e6 {[%clk 0:02:58]} 3. Nc3 {[%clk 0:03:00.4]} 3... Bb4 {[%clk 0:02:56.9]}
4. Qc2 {[%clk 0:03:00.1]} 4... c5 {[%clk 0:02:56.1]} 5. dxc5 {[%clk 0:02:59.8]}
5... Qa5 {[%clk 0:02:54.8]} 6. Bd2 {[%clk 0:02:51.9]} 6... Qxc5 {[%clk
0:02:53.6]} 7. e4 {[%clk 0:02:45.3]} 7... Nc6 {[%clk 0:02:49.1]} 8. Nf3 {[%clk
0:02:39.3]} 8... Ng4 {[%clk 0:02:48.8]} 9. Bf4 {[%clk 0:02:28.3]} 9... Bxc3+
{[%clk 0:02:45]} 10. bxc3 {[%clk 0:02:26]} 10... O-O {[%clk 0:02:40.8]} 11. h3
{[%clk 0:02:16.4]} 11... Nge5 {[%clk 0:02:40.1]} 12. Be2 {[%clk 0:02:15.2]}
12... b6 {[%clk 0:02:37.8]} 13. Rd1 {[%clk 0:02:07.9]} 13... Nxc4 {[%clk
0:02:35.6]} 14. Bxc4 {[%clk 0:01:58.8]} 14... Qxc4 {[%clk 0:02:35.3]} 15. Nd2
{[%clk 0:01:56.3]} 15... Qb5 {[%clk 0:02:26.4]} 16. Bd6 {[%clk 0:01:52.6]} 16...
Re8 {[%clk 0:02:24.8]} 17. a4 {[%clk 0:01:49.9]} 17... Qa5 {[%clk 0:02:11.2]}
18. Nc4 {[%clk 0:01:45.9]} 18... Qg5 {[%clk 0:02:05.7]} 19. O-O {[%clk
0:01:38.1]} 19... Ba6 {[%clk 0:02:00.4]} 20. f4 {[%clk 0:01:28.4]} 20... Qh5
{[%clk 0:01:47.9]} 21. Qd3 {[%clk 0:01:23.2]} 21... Na5 {[%clk 0:01:39.8]} 22.
g4 {[%clk 0:01:09.6]} 22... Qh4 {[%clk 0:01:24.8]} 23. Rf3 {[%clk 0:01:03.8]}
23... Bxc4 {[%clk 0:01:21.6]} 24. Qe3 {[%clk 0:01:00.9]} 24... Rac8 {[%clk
0:01:20.1]} 25. f5 {[%clk 0:00:54.1]} 25... Nb7 {[%clk 0:01:17.8]} 26. Bg3
{[%clk 0:00:51.8]} 26... Qxh3 {[%clk 0:01:17.3]} 27. Rd2 {[%clk 0:00:33]} 27...
Qxg4 {[%clk 0:01:09.4]} 28. Rg2 {[%clk 0:00:31.1]} 28... exf5 {[%clk 0:01:09.3]}
29. Be5 {[%clk 0:00:23]} 29... Rxe5 {[%clk 0:01:03.4]} 30. Rxg4 {[%clk 0:00:21]}
30... fxg4 {[%clk 0:01:03.1]} 31. Rf4 {[%clk 0:00:19.3]} 31... Nc5 {[%clk
0:00:57.5]} 32. Qd4 {[%clk 0:00:15.6]} 32... Rce8 {[%clk 0:00:54.3]} 33. Qxc4
{[%clk 0:00:14.6]} 33... h5 {[%clk 0:00:52.8]} 34. Qxf7+ {[%clk 0:00:14.2]}
34... Kh7 {[%clk 0:00:52.2]} 35. Rf5 {[%clk 0:00:11]} 35... Rxf5 {[%clk
0:00:45.5]} 36. exf5 {[%clk 0:00:10.5]} 36... Re1+ {[%clk 0:00:39.3]} 37. Kg2
{[%clk 0:00:10.5]} 37... Re2+ {[%clk 0:00:26.5]} 38. Kf1 {[%clk 0:00:09.6]}
38... Rh2 {[%clk 0:00:23.5]} 39. f6 {[%clk 0:00:07.6]} 39... Ne6 {[%clk
0:00:23.2]} 40. Qxd7 {[%clk 0:00:04.7]} 40... Rh1+ {[%clk 0:00:19.8]} 41. Kg2
{[%clk 0:00:04.7]} 41... Re1 {[%clk 0:00:17.9]} 42. f7 {[%clk 0:00:03.2]} 42...
Kg6 {[%clk 0:00:14.9]} 43. Qd6 {[%clk 0:00:01.9]} 43... Kxf7 {[%clk 0:00:11.5]}
44. Qd2 {[%clk 0:00:02.1]} 44... Re5 {[%clk 0:00:09.8]} 45. Kg3 {[%clk
0:00:02.4]} 45... g5 {[%clk 0:00:08.2]} 46. Qd6 {[%clk 0:00:01.7]} 46... Kf6
{[%clk 0:00:07.9]} 47. Kg2 {[%clk 0:00:01.9]} 47... Re2+ {[%clk 0:00:07]} 48.
Kf1 {[%clk 0:00:01.7]} 48... Re3 {[%clk 0:00:05.6]} 49. Qb8 {[%clk 0:00:01.8]}
49... Rxc3 {[%clk 0:00:04.9]} 50. Qh8+ {[%clk 0:00:02.4]} 50... Ng7 {[%clk
0:00:03.4]} 51. Qf8+ {[%clk 0:00:02.9]} 51... Kg6 {[%clk 0:00:03.2]} 52. Qb4
{[%clk 0:00:03.6]} 52... Rf3+ {[%clk 0:00:02.1]} 53. Ke2 {[%clk 0:00:04.5]}
53... Rf5 {[%clk 0:00:01.5]} 54. Qe4 {[%clk 0:00:04.7]} 1-0

[Event "*** Titled Tuesday Blitz"]
[Site "Chess.com"]
[Date "2020.05.26"]
[Round "9"]
[White "PauloFanha"]
[Black "agrigo3"]
[Result "0-1"]
[WhiteElo "1969"]
[BlackElo "2255"]
[TimeControl "180+1"]
[EndTime "11:52:59 PDT"]
[Termination "agrigo3 won on time"]

1. e4 {[%clk 0:03:00.9]} 1... g6 {[%clk 0:02:59.8]} 2. d4 {[%clk 0:02:59.5]}
2... Bg7 {[%clk 0:03:00.7]} 3. Nc3 {[%clk 0:02:58]} 3... d6 {[%clk 0:03:00.2]}
4. Nf3 {[%clk 0:02:58.3]} 4... a6 {[%clk 0:02:50.4]} 5. Bf4 {[%clk 0:02:56.3]}
5... b5 {[%clk 0:02:49.5]} 6. a3 {[%clk 0:02:52.9]} 6... Bb7 {[%clk 0:02:49.5]}
7. Bd3 {[%clk 0:02:52.1]} 7... Nd7 {[%clk 0:02:49.5]} 8. O-O {[%clk 0:02:49]}
8... c5 {[%clk 0:02:48.6]} 9. Re1 {[%clk 0:02:42.3]} 9... cxd4 {[%clk
0:02:47.9]} 10. Ne2 {[%clk 0:02:35.8]} 10... e5 {[%clk 0:02:46.7]} 11. Bg5
{[%clk 0:02:35.4]} 11... f6 {[%clk 0:02:44.9]} 12. Bd2 {[%clk 0:02:34.6]} 12...
Ne7 {[%clk 0:02:36.9]} 13. c4 {[%clk 0:02:30.7]} 13... dxc3 {[%clk 0:02:29.5]}
14. Bxc3 {[%clk 0:02:22]} 14... O-O {[%clk 0:02:15.4]} 15. Qd2 {[%clk
0:02:15.5]} 15... Nc5 {[%clk 0:02:12.1]} 16. Nc1 {[%clk 0:02:04.3]} 16... d5
{[%clk 0:01:59.4]} 17. Bb4 {[%clk 0:01:50.9]} 17... Rc8 {[%clk 0:01:46.5]} 18.
exd5 {[%clk 0:01:42.1]} 18... Bxd5 {[%clk 0:01:24.9]} 19. Bxc5 {[%clk
0:01:35.6]} 19... Rxc5 {[%clk 0:01:23.9]} 20. Qb4 {[%clk 0:01:35.9]} 20... Qb6
{[%clk 0:01:08.4]} 21. Nb3 {[%clk 0:01:30.6]} 21... Rc7 {[%clk 0:01:05.4]} 22.
Nfd2 {[%clk 0:01:27.7]} 22... f5 {[%clk 0:00:43.6]} 23. Rac1 {[%clk 0:01:23.9]}
23... e4 {[%clk 0:00:39.8]} 24. Rxc7 {[%clk 0:01:13.1]} 24... Qxc7 {[%clk
0:00:38.6]} 25. Rc1 {[%clk 0:01:10.6]} 25... Qe5 {[%clk 0:00:33.7]} 26. Bf1
{[%clk 0:01:02.6]} 26... Bf7 {[%clk 0:00:19.6]} 27. Nc5 {[%clk 0:00:51.2]} 27...
Nd5 {[%clk 0:00:18.4]} 28. Qa5 {[%clk 0:00:46.3]} 28... Qc7 {[%clk 0:00:13.4]}
29. Qxc7 {[%clk 0:00:40]} 29... Nxc7 {[%clk 0:00:13]} 30. Nd7 {[%clk 0:00:35.5]}
30... Rc8 {[%clk 0:00:12.6]} 31. Nb6 {[%clk 0:00:31.3]} 31... Rb8 {[%clk
0:00:12.1]} 32. Rxc7 {[%clk 0:00:29.7]} 32... Rxb6 {[%clk 0:00:11.9]} 33. Rc8+
{[%clk 0:00:23.5]} 33... Bf8 {[%clk 0:00:12.1]} 34. g3 {[%clk 0:00:22.3]} 34...
Kg7 {[%clk 0:00:12.3]} 35. Be2 {[%clk 0:00:20.3]} 35... Rd6 {[%clk 0:00:12.3]}
36. Nf1 {[%clk 0:00:20.1]} 36... Rd7 {[%clk 0:00:11.5]} 37. Ne3 {[%clk
0:00:19.1]} 37... Rd6 {[%clk 0:00:11.5]} 38. Rc7 {[%clk 0:00:18.7]} 38... Kf6
{[%clk 0:00:10.7]} 39. Bd1 {[%clk 0:00:18]} 39... Be7 {[%clk 0:00:10.8]} 40. Bc2
{[%clk 0:00:16.6]} 40... Bd8 {[%clk 0:00:10.8]} 41. Ra7 {[%clk 0:00:15.5]} 41...
Be7 {[%clk 0:00:09.1]} 42. Ng2 {[%clk 0:00:15]} 42... g5 {[%clk 0:00:08.8]} 43.
Ne3 {[%clk 0:00:14.6]} 43... Be6 {[%clk 0:00:09]} 44. h4 {[%clk 0:00:13.5]}
44... h6 {[%clk 0:00:08.7]} 45. hxg5+ {[%clk 0:00:12.4]} 45... hxg5 {[%clk
0:00:09]} 46. g4 {[%clk 0:00:11.3]} 46... Rc6 {[%clk 0:00:08.7]} 47. gxf5 {[%clk
0:00:09.5]} 47... Bxf5 {[%clk 0:00:08.9]} 48. Nxf5 {[%clk 0:00:09]} 48... Kxf5
{[%clk 0:00:09.1]} 49. Bb3 {[%clk 0:00:07.9]} 49... Bd6 {[%clk 0:00:08.3]} 50.
Rf7+ {[%clk 0:00:07.3]} 50... Kg6 {[%clk 0:00:07.5]} 51. Rd7 {[%clk 0:00:06.4]}
51... Rc1+ {[%clk 0:00:07.1]} 52. Kg2 {[%clk 0:00:05]} 52... Be5 {[%clk
0:00:07.6]} 53. Bd5 {[%clk 0:00:04.5]} 53... Bxb2 {[%clk 0:00:07.3]} 54. Bxe4+
{[%clk 0:00:03.3]} 54... Kf6 {[%clk 0:00:07.8]} 55. Bb7 {[%clk 0:00:02.1]} 55...
Bxa3 {[%clk 0:00:07.3]} 0-1